[Event "NJSK 2026 Jeugd C"]
[Site "Helmond, Netherlands"]
[Date "2026.04.29"]
[Round "7.3"]
[White "Lenting, Roan"]
[Black "Zhang, Xiheng"]
[Result "1/2-1/2"]
[TimeControl "90min/40moves + 30sec/move"]
[WhiteTitle "-"]
[BlackTitle "-"]
[WhiteFideId "1085905"]
[BlackFideId "40102386"]
[WhiteElo "1986"]
[BlackElo "2135"]

1. e4 {[%clk 01:30:55]} {[%emt 00:00:04]} c5 {[%clk 01:30:57]} {[%emt
00:00:03]} 2. c4 {[%clk 01:31:21]} {[%emt 00:00:04]} Nc6 {[%clk 01:31:19]}
{[%emt 00:00:08]} 3. Nc3 {[%clk 01:31:48]} {[%emt 00:00:03]} e6 {[%clk
01:31:43]} {[%emt 00:00:07]} 4. g3 {[%clk 01:32:08]} {[%emt 00:00:10]} Nf6
{[%clk 01:31:26]} {[%emt 00:00:47]} 5. Bg2 {[%clk 01:32:30]} {[%emt 00:00:08]}
Be7 {[%clk 01:29:56]} {[%emt 00:01:59]} 6. Nge2 {[%clk 01:32:44]} {[%emt
00:00:16]} O-O {[%clk 01:28:41]} {[%emt 00:01:45]} 7. O-O {[%clk 01:32:27]}
{[%emt 00:00:47]} d6 {[%clk 01:27:09]} {[%emt 00:02:01]} 8. a3 {[%emt
00:01:41]} a6 {[%clk 01:23:05]} {[%emt 00:04:28]} 9. Rb1 {[%clk 01:28:00]}
{[%emt 00:03:52]} Rb8 {[%clk 01:19:53]} {[%emt 00:03:42]} 10. f4 {[%clk
01:24:20]} {[%emt 00:04:10]} Re8 {[%clk 01:10:33]} {[%emt 00:09:50]} 11. b4
{[%clk 01:19:26]} {[%emt 00:05:24]} cxb4 {[%clk 01:04:13]} {[%emt 00:06:52]} 12.
axb4 {[%clk 01:19:47]} {[%emt 00:00:08]} b5 {[%clk 01:03:03]} {[%emt 00:01:41]}
13. cxb5 {[%clk 00:56:54]} {[%emt 00:23:22]} axb5 {[%clk 01:03:12]} {[%emt
00:00:20]} 14. h3 {[%clk 00:51:11]} {[%emt 00:06:13]} d5 {[%clk 00:57:04]}
{[%emt 00:06:38]} 15. e5 {[%clk 00:51:28]} {[%emt 00:00:13]} Nd7 {[%clk
00:56:11]} {[%emt 00:01:23]} 16. Ba3 {[%clk 00:50:34]} {[%emt 00:01:25]} Ra8
{[%clk 00:51:00]} {[%emt 00:05:41]} 17. Qb3 {[%clk 00:48:26]} {[%emt 00:02:37]}
Bb7 {[%clk 00:48:24]} {[%emt 00:03:07]} 18. d4 {[%clk 00:44:51]} {[%emt
00:04:04]} Qb6 {[%clk 00:46:26]} {[%emt 00:02:28]} 19. Rfd1 {[%clk 00:45:03]}
{[%emt 00:00:18]} Ra6 {[%clk 00:41:52]} {[%emt 00:05:04]} 20. Bb2 {[%clk
00:25:35]} {[%emt 00:19:58]} Bxb4 {[%clk 00:27:00]} {[%emt 00:15:22]} 21. Kh2
{[%clk 00:20:00]} {[%emt 00:06:06]} Rea8 {[%clk 00:19:58]} {[%emt 00:07:32]} 22.
f5 {[%clk 00:18:07]} {[%emt 00:02:21]} Bxc3 {[%clk 00:15:08]} {[%emt 00:05:21]}
23. Qxc3 {[%clk 00:14:56]} {[%emt 00:03:42]} Ne7 {[%clk 00:10:56]} {[%emt
00:04:42]} 24. fxe6 {[%clk 00:14:24]} {[%emt 00:01:02]} fxe6 {[%clk 00:10:09]}
{[%emt 00:01:17]} 25. Qb4 {[%clk 00:10:22]} {[%emt 00:04:31]} Nf5 {[%clk
00:09:41]} {[%emt 00:00:58]} 26. Rd3 {[%clk 00:09:18]} {[%emt 00:01:34]} Qa5
{[%clk 00:09:24]} {[%emt 00:00:48]} 27. Bc3 {[%clk 00:08:17]} {[%emt 00:01:30]}
Qxb4 {[%clk 00:09:07]} {[%emt 00:00:48]} 28. Bxb4 {[%clk 00:08:01]} {[%emt
00:00:46]} Bc6 {[%clk 00:08:22]} {[%emt 00:01:14]} 29. g4 {[%clk 00:08:13]}
{[%emt 00:00:18]} Nh4 {[%clk 00:08:40]} {[%emt 00:00:12]} 30. Bf1 {[%clk
00:07:10]} {[%emt 00:01:33]} Nb6 {[%clk 00:08:25]} {[%emt 00:00:45]} 31. Kg3
{[%clk 00:07:06]} {[%emt 00:00:33]} Ng6 {[%clk 00:08:48]} {[%emt 00:00:09]} 32.
Nc3 {[%clk 00:07:07]} {[%emt 00:00:28]} Nc4 {[%clk 00:08:35]} {[%emt 00:00:43]}
33. Rdd1 {[%clk 00:06:22]} {[%emt 00:01:15]} Nf8 {[%clk 00:05:24]} {[%emt
00:03:41]} 34. Bxc4 {[%clk 00:04:33]} {[%emt 00:02:19]} bxc4 {[%clk 00:05:24]}
{[%emt 00:00:30]} 35. Kf2 {[%clk 00:04:23]} {[%emt 00:00:39]} Be8 {[%clk
00:04:15]} {[%emt 00:01:40]} 36. Bd6 {[%clk 00:03:49]} {[%emt 00:01:03]} Bg6
{[%clk 00:04:09]} {[%emt 00:00:37]} 37. Rb7 {[%clk 00:04:06]} {[%emt 00:00:13]}
R6a7 {[%clk 00:03:40]} {[%emt 00:01:00]} 38. Rb5 {[%clk 00:03:44]} {[%emt
00:00:51]} h6 {[%clk 00:02:55]} {[%emt 00:01:15]} 39. h4 {[%clk 00:03:39]}
{[%emt 00:00:35]} Bd3 {[%clk 00:02:50]} {[%emt 00:00:33]} 40. Kg3 {[%clk
00:03:44]} {[%emt 00:00:27]} Rf7 {[%clk 00:02:28]} {[%emt 00:00:53]} 41. Rb2
{[%clk 00:03:37]} {[%emt 00:00:36]} Ng6 {[%clk 00:02:19]} {[%emt 00:00:39]} 42.
h5 {[%clk 00:03:14]} {[%emt 00:00:53]} Nf8 {[%clk 00:02:35]} {[%emt 00:00:14]}
43. Bc5 {[%clk 00:03:21]} {[%emt 00:00:23]} Nh7 {[%clk 00:02:42]} {[%emt
00:00:24]} 44. Rf2 {[%clk 00:02:25]} {[%emt 00:01:25]} Rxf2 {[%clk 00:02:41]}
{[%emt 00:00:31]} 45. Kxf2 {[%clk 00:02:53]} {[%emt 00:00:01]} Ng5 {[%clk
00:03:05]} {[%emt 00:00:07]} 46. Ke3 {[%clk 00:02:58]} {[%emt 00:00:24]} Ra6
{[%clk 00:02:21]} {[%emt 00:01:14]} 47. Rc1 {[%clk 00:02:46]} {[%emt 00:00:42]}
Kh7 {[%clk 00:02:16]} {[%emt 00:00:35]} 48. Rd1 {[%clk 00:02:58]} {[%emt
00:00:18]} Ra8 {[%clk 00:01:33]} {[%emt 00:01:13]} 49. Be7 {[%clk 00:03:13]}
{[%emt 00:00:15]} Ne4 {[%clk 00:01:31]} {[%emt 00:00:32]} 50. Nxe4 {[%clk
00:03:26]} {[%emt 00:00:17]} dxe4 {[%clk 00:01:56]} {[%emt 00:00:05]} 51. Bb4
{[%clk 00:03:35]} {[%emt 00:00:21]} Ra2 {[%emt 00:00:45]} 52. Bd2 {[%clk
00:03:47]} Ra7 {[%clk 00:02:00]} {[%emt 00:00:28]} 53. Rg1 {[%clk 00:03:13]}
{[%emt 00:01:04]} Rf7 {[%clk 00:02:05]} {[%emt 00:00:25]} 54. d5 {[%clk
00:02:44]} {[%emt 00:00:59]} exd5 {[%clk 00:01:37]} {[%emt 00:00:59]} 55. Kd4
{[%clk 00:03:09]} {[%emt 00:00:04]} Rf1 {[%clk 00:00:57]} {[%emt 00:01:10]} 56.
Rg2 {[%clk 00:02:23]} {[%emt 00:01:16]} Rd1 {[%clk 00:00:48]} {[%emt 00:00:39]}
57. Rf2 {[%clk 00:01:55]} {[%emt 00:00:58]} Bc2 {[%clk 00:00:47]} {[%emt
00:00:31]} 58. e6 {[%clk 00:01:26]} {[%emt 00:00:59]} Ba4 {[%clk 00:01:11]}
{[%emt 00:00:06]} 59. Ke5 {[%clk 00:00:55]} {[%emt 00:01:01]} Bb5 {[%clk
00:01:15]} {[%emt 00:00:26]} 60. Bc3 {[%clk 00:00:53]} {[%emt 00:00:32]} Rg1
{[%clk 00:00:49]} {[%emt 00:00:56]} 61. Kxd5 {[%clk 00:00:56]} {[%emt
00:00:27]} Rxg4 {[%clk 00:01:10]} {[%emt 00:00:09]} 62. e7 {[%clk 00:01:00]}
{[%emt 00:00:26]} Be8 {[%clk 00:01:19]} {[%emt 00:00:21]} 63. Rf8 {[%clk
00:00:44]} {[%emt 00:00:46]} Bxh5 {[%clk 00:01:44]} {[%emt 00:00:05]} 64. e8=Q
{[%clk 00:01:03]} {[%emt 00:00:11]} Bxe8 {[%clk 00:02:08]} {[%emt 00:00:06]} 65.
Rxe8 {[%clk 00:01:30]} {[%emt 00:00:03]} h5 {[%clk 00:01:40]} {[%emt 00:01:24]}
66. Re5 {[%clk 00:01:06]} {[%emt 00:00:53]} Kg6 {[%clk 00:01:40]} {[%emt
00:00:30]} 67. Kxc4 {[%clk 00:01:02]} {[%emt 00:00:34]} h4 {[%clk 00:01:26]}
{[%emt 00:00:44]} 68. Re8 {[%clk 00:01:04]} {[%emt 00:00:29]} Kf7 {[%clk
00:01:26]} {[%emt 00:00:29]} 69. Rh8 {[%clk 00:01:28]} {[%emt 00:00:06]} g5
{[%clk 00:01:36]} {[%emt 00:00:20]} 70. Kd4 {[%clk 00:01:21]} {[%emt 00:00:37]}
Kg7 {[%clk 00:01:03]} {[%emt 00:01:03]} 71. Ke3+ {[%clk 00:01:29]} {[%emt
00:00:22]} Kf7 {[%clk 00:01:20]} {[%emt 00:00:13]} 72. Be1 {[%clk 00:01:29]}
{[%emt 00:00:30]} 1/2-1/2

[Event "NJSK 2026 Jeugd C"]
[Site "Helmond, Netherlands"]
[Date "2026.04.29"]
[Round "7.4"]
[White "Zhou, Yanyang"]
[Black "Sosef, Noah"]
[Result "1-0"]
[TimeControl "90min/40moves + 30sec/move"]
[WhiteTitle "-"]
[BlackTitle "-"]
[WhiteFideId "40109739"]
[BlackFideId "40107060"]
[WhiteElo "1860"]
[BlackElo "2012"]

1. e4 {[%clk 01:30:59]} c6 {[%clk 01:30:57]} {[%emt 00:00:04]} 2. d4 {[%clk
01:31:27]} {[%emt 00:00:02]} d5 {[%clk 01:31:20]} {[%emt 00:00:07]} 3. e5
{[%clk 01:31:53]} {[%emt 00:00:04]} c5 {[%clk 01:31:46]} {[%emt 00:00:03]} 4.
dxc5 {[%clk 01:32:21]} {[%emt 00:00:03]} e6 {[%clk 01:32:11]} {[%emt 00:00:05]}
5. Nf3 {[%clk 01:32:48]} {[%emt 00:00:03]} Bxc5 {[%clk 01:32:36]} {[%emt
00:00:05]} 6. Bd3 {[%clk 01:33:14]} {[%emt 00:00:03]} Nc6 {[%clk 01:32:59]}
{[%emt 00:00:07]} 7. O-O {[%clk 01:33:27]} {[%emt 00:00:17]} f6 {[%clk
01:33:05]} {[%emt 00:00:25]} 8. Qe2 {[%clk 01:25:47]} {[%emt 00:08:09]} fxe5
{[%clk 01:27:15]} {[%emt 00:06:21]} 9. Nxe5 {[%clk 01:25:33]} {[%emt 00:00:42]}
Nf6 {[%clk 01:26:47]} {[%emt 00:01:00]} 10. Ng4 {[%clk 01:21:25]} {[%emt
00:04:36]} O-O {[%clk 01:05:26]} {[%emt 00:21:52]} 11. Nxf6+ {[%clk 01:20:11]}
{[%emt 00:01:45]} Qxf6 {[%clk 01:05:19]} {[%emt 00:00:38]} 12. c3 {[%clk
01:17:25]} {[%emt 00:03:16]} e5 {[%clk 00:52:49]} {[%emt 00:13:00]} 13. Be3
{[%clk 01:14:53]} {[%emt 00:03:02]} Bd6 {[%clk 00:44:09]} {[%emt 00:09:11]} 14.
f3 {[%clk 01:12:25]} {[%emt 00:02:57]} Be6 {[%clk 00:37:52]} {[%emt 00:06:47]}
15. Nd2 {[%clk 01:09:33]} {[%emt 00:03:21]} Rae8 {[%clk 00:34:32]} {[%emt
00:03:51]} 16. c4 {[%clk 01:08:17]} {[%emt 00:01:47]} dxc4 {[%clk 00:20:59]}
{[%emt 00:14:03]} 17. Bxc4 {[%clk 01:05:53]} {[%emt 00:02:53]} Qf7 {[%clk
00:10:03]} {[%emt 00:11:26]} 18. Bxe6 {[%clk 01:05:41]} {[%emt 00:00:42]} Qxe6
{[%clk 00:10:21]} {[%emt 00:00:13]} 19. Ne4 {[%clk 01:05:43]} {[%emt 00:00:27]}
Nd4 {[%clk 00:09:16]} {[%emt 00:01:36]} 20. Qf2 {[%clk 01:04:11]} {[%emt
00:02:00]} Bc7 {[%clk 00:08:37]} {[%emt 00:01:11]} 21. Kh1 {[%clk 00:53:49]}
{[%emt 00:10:51]} Bb6 {[%clk 00:08:47]} {[%emt 00:00:21]} 22. b3 {[%clk
00:50:37]} {[%emt 00:03:41]} Rc8 {[%clk 00:08:42]} {[%emt 00:00:35]} 23. Rac1
{[%clk 00:50:17]} {[%emt 00:00:50]} Rfd8 {[%clk 00:08:11]} {[%emt 00:01:01]} 24.
Ng3 {[%clk 00:48:01]} {[%emt 00:02:45]} Qd5 {[%clk 00:02:41]} {[%emt 00:06:01]}
25. h3 {[%clk 00:44:42]} {[%emt 00:03:48]} Rf8 {[%clk 00:02:25]} {[%emt
00:00:47]} 26. Ne4 {[%clk 00:34:47]} {[%emt 00:10:25]} Rc6 {[%clk 00:02:03]}
{[%emt 00:00:52]} 27. Rxc6 {[%clk 00:34:55]} {[%emt 00:00:22]} bxc6 {[%clk
00:02:23]} {[%emt 00:00:11]} 28. Nc3 {[%clk 00:34:24]} {[%emt 00:01:00]} Qf7
{[%clk 00:02:32]} {[%emt 00:00:21]} 29. Ne2 {[%clk 00:33:46]} {[%emt 00:01:08]}
c5 {[%clk 00:02:50]} {[%emt 00:00:12]} 30. Nc3 {[%clk 00:32:46]} {[%emt
00:01:30]} Qg6 {[%clk 00:03:02]} {[%emt 00:00:19]} 31. Na4 {[%clk 00:31:57]}
{[%emt 00:01:18]} Qc6 {[%clk 00:01:20]} {[%emt 00:02:12]} 32. Nxb6 {[%clk
00:30:17]} {[%emt 00:02:10]} axb6 {[%clk 00:01:49]} {[%emt 00:00:01]} 33. b4
{[%clk 00:29:04]} {[%emt 00:01:43]} Qd5 {[%clk 00:01:19]} {[%emt 00:01:00]} 34.
bxc5 {[%clk 00:28:44]} {[%emt 00:00:50]} bxc5 {[%clk 00:01:48]} {[%emt
00:00:02]} 35. a4 {[%clk 00:26:41]} {[%emt 00:02:32]} Ra8 {[%clk 00:01:33]}
{[%emt 00:00:45]} 36. Ra1 {[%clk 00:26:18]} {[%emt 00:00:52]} Qb3 {[%clk
00:01:19]} {[%emt 00:00:44]} 37. Bxd4 {[%clk 00:26:10]} {[%emt 00:00:38]} exd4
{[%clk 00:01:32]} {[%emt 00:00:18]} 38. Qh4 {[%clk 00:19:09]} {[%emt 00:07:32]}
d3 {[%clk 00:01:03]} {[%emt 00:00:58]} 39. Qe4 {[%clk 00:18:33]} {[%emt
00:01:06]} d2 {[%clk 00:00:46]} {[%emt 00:00:48]} 40. Qxa8+ {[%clk 00:18:38]}
{[%emt 00:00:24]} Kf7 {[%clk 00:01:12]} {[%emt 00:00:05]} 41. Qd8 {[%clk
00:16:42]} {[%emt 00:02:23]} 1-0

[Event "NJSK 2026 Jeugd C"]
[Site "Helmond, Netherlands"]
[Date "2026.04.29"]
[Round "7.5"]
[White "Gupta, Akul"]
[Black "Blok, Lukas"]
[Result "1-0"]
[TimeControl "90min/40moves + 30sec/move"]
[WhiteTitle "-"]
[BlackTitle "-"]
[WhiteFideId "1084194"]
[BlackFideId "40110494"]
[WhiteElo "2017"]
[BlackElo "1991"]

1. d4 {[%clk 01:30:56]} {[%emt 00:00:03]} d6 {[%clk 01:31:00]} {[%emt
00:00:02]} 2. Nc3 {[%clk 01:31:08]} {[%emt 00:00:17]} Nf6 {[%clk 01:31:25]}
{[%emt 00:00:04]} 3. e4 {[%clk 01:31:34]} {[%emt 00:00:06]} g6 {[%clk
01:31:53]} {[%emt 00:00:02]} 4. Be3 {[%clk 01:31:53]} {[%emt 00:00:10]} c6
{[%clk 01:30:01]} {[%emt 00:02:22]} 5. f3 {[%clk 01:32:18]} {[%emt 00:00:05]}
Nbd7 {[%clk 01:30:29]} {[%emt 00:00:02]} 6. h4 {[%clk 01:31:34]} {[%emt
00:01:13]} b5 {[%clk 01:29:44]} {[%emt 00:01:16]} 7. g4 {[%clk 01:31:59]}
{[%emt 00:00:06]} h5 {[%clk 01:29:14]} {[%emt 00:00:58]} 8. g5 {[%clk
01:32:02]} {[%emt 00:00:28]} Nh7 {[%clk 01:29:43]} {[%emt 00:00:01]} 9. d5
{[%clk 01:28:53]} {[%emt 00:03:38]} Ne5 {[%clk 01:03:57]} {[%emt 00:26:16]} 10.
dxc6 {[%clk 01:27:20]} {[%emt 00:02:03]} b4 {[%clk 00:56:04]} {[%emt 00:08:25]}
11. Bb5 {[%clk 01:26:56]} {[%emt 00:00:54]} Qa5 {[%clk 00:56:21]} {[%emt
00:00:12]} 12. c7+ {[%clk 01:27:17]} {[%emt 00:00:10]} Nd7 {[%clk 00:51:47]}
{[%emt 00:05:04]} 13. Qd5 {[%clk 01:27:38]} {[%emt 00:00:08]} Qxc7 {[%clk
00:52:13]} {[%emt 00:00:04]} 14. Qxa8 {[%clk 01:28:02]} {[%emt 00:00:06]} bxc3
{[%clk 00:52:38]} {[%emt 00:00:05]} 15. Bxd7+ {[%clk 01:27:02]} {[%emt
00:01:30]} Kxd7 {[%clk 00:51:20]} {[%emt 00:01:48]} 16. Qxa7 {[%clk 01:27:15]}
{[%emt 00:00:17]} cxb2 {[%clk 00:49:10]} {[%emt 00:02:41]} 17. Qxc7+ {[%clk
01:27:23]} {[%emt 00:00:21]} Kxc7 {[%clk 00:49:35]} {[%emt 00:00:06]} 18. Rb1
{[%clk 01:27:29]} {[%emt 00:00:24]} Bg7 {[%clk 00:50:04]} {[%emt 00:00:01]} 19.
Ne2 {[%clk 01:27:50]} {[%emt 00:00:08]} Be6 {[%clk 00:50:29]} {[%emt 00:00:06]}
20. Bd4 {[%clk 01:27:18]} {[%emt 00:01:01]} Bxd4 {[%clk 00:49:12]} {[%emt
00:01:47]} 21. Nxd4 {[%clk 01:27:41]} {[%emt 00:00:08]} Rb8 {[%clk 00:49:35]}
{[%emt 00:00:07]} 22. Nxe6+ {[%clk 01:27:24]} {[%emt 00:00:46]} fxe6 {[%clk
00:50:04]} 23. Kd2 {[%clk 01:27:38]} {[%emt 00:00:15]} e5 {[%clk 00:50:26]}
{[%emt 00:00:10]} 24. Kc3 {[%clk 01:25:14]} {[%emt 00:02:53]} Nf8 {[%clk
00:50:51]} {[%emt 00:00:06]} 25. Rxb2 {[%clk 01:25:18]} {[%emt 00:00:26]} Rc8
{[%clk 00:49:36]} {[%emt 00:01:46]} 26. Rhb1 {[%clk 01:23:33]} {[%emt
00:02:14]} Ne6 {[%clk 00:49:26]} {[%emt 00:00:40]} 27. Rb7+ {[%clk 01:23:20]}
{[%emt 00:00:44]} Kd8+ {[%clk 00:45:43]} {[%emt 00:04:13]} 28. Kd2 {[%clk
01:23:44]} {[%emt 00:00:05]} Rc5 {[%clk 00:46:10]} {[%emt 00:00:04]} 29. Rb8+
{[%clk 01:23:54]} {[%emt 00:00:20]} Kc7 {[%clk 00:46:33]} {[%emt 00:00:06]} 30.
R1b7+ {[%clk 01:23:49]} {[%emt 00:00:35]} Kc6 {[%clk 00:47:00]} {[%emt
00:00:04]} 31. Rxe7 {[%clk 01:23:57]} {[%emt 00:00:22]} Nd4 {[%clk 00:46:02]}
{[%emt 00:01:27]} 32. Rc8+ {[%clk 01:24:21]} {[%emt 00:00:05]} Kb6 {[%clk
00:46:30]} {[%emt 00:00:03]} 33. Rxc5 {[%clk 01:24:42]} {[%emt 00:00:09]} dxc5
{[%clk 00:47:00]} {[%emt 00:00:01]} 34. Kd3 {[%clk 01:24:09]} {[%emt 00:01:00]}
Nxf3 {[%clk 00:47:22]} {[%emt 00:00:10]} 35. Re6+ {[%clk 01:24:33]} {[%emt
00:00:06]} Kb5 {[%clk 00:47:50]} {[%emt 00:00:03]} 36. Rxg6 {[%clk 01:24:54]}
{[%emt 00:00:08]} Nxh4 {[%clk 00:48:17]} {[%emt 00:00:04]} 37. Rh6 {[%clk
01:25:05]} {[%emt 00:00:18]} Ng2 {[%clk 00:48:44]} {[%emt 00:00:03]} 38. g6
{[%clk 01:25:23]} {[%emt 00:00:11]} h4 {[%clk 00:49:11]} {[%emt 00:00:04]} 39.
Rxh4 {[%clk 01:25:23]} {[%emt 00:00:30]} Nxh4 {[%clk 00:49:35]} {[%emt
00:00:06]} 40. g7 {[%clk 01:25:49]} {[%emt 00:00:04]} 1-0

[Event "NJSK 2026 Jeugd C"]
[Site "Helmond, Netherlands"]
[Date "2026.04.29"]
[Round "7.6"]
[White "Leenen, Boyd"]
[Black "Ozbek, Ahmet Naim"]
[Result "1-0"]
[TimeControl "90min/40moves + 30sec/move"]
[WhiteTitle "-"]
[BlackTitle "-"]
[WhiteFideId "1083937"]
[BlackFideId "40101975"]
[WhiteElo "2205"]
[BlackElo "1869"]

1. e4 {[%clk 01:30:58]} {[%emt 00:00:01]} e5 {[%clk 01:30:33]} {[%emt
00:00:28]} 2. Nf3 {[%clk 01:31:24]} {[%emt 00:00:03]} Nc6 {[%clk 01:31:00]}
{[%emt 00:00:03]} 3. Bb5 {[%clk 01:31:50]} {[%emt 00:00:04]} a6 {[%clk
01:31:26]} {[%emt 00:00:04]} 4. Ba4 {[%clk 01:32:16]} {[%emt 00:00:04]} Nf6
{[%clk 01:31:53]} {[%emt 00:00:04]} 5. O-O {[%clk 01:32:42]} {[%emt 00:00:04]}
Be7 {[%clk 01:32:19]} {[%emt 00:00:03]} 6. Re1 {[%clk 01:33:10]} {[%emt
00:00:02]} b5 {[%clk 01:32:47]} {[%emt 00:00:03]} 7. Bb3 {[%clk 01:33:36]}
{[%emt 00:00:03]} d6 {[%clk 01:33:14]} {[%emt 00:00:03]} 8. c3 {[%clk
01:34:03]} {[%emt 00:00:03]} O-O {[%clk 01:33:27]} {[%emt 00:00:18]} 9. h3
{[%clk 01:34:31]} Na5 {[%clk 01:33:51]} {[%emt 00:00:06]} 10. Bc2 {[%clk
01:34:58]} {[%emt 00:00:04]} c5 {[%clk 01:34:16]} {[%emt 00:00:08]} 11. d4
{[%clk 01:35:25]} Nd7 {[%clk 01:34:42]} {[%emt 00:00:02]} 12. d5 {[%clk
01:35:52]} {[%emt 00:00:04]} Nb6 {[%clk 01:35:06]} {[%emt 00:00:06]} 13. Nbd2
{[%clk 01:35:14]} {[%emt 00:01:07]} Bd7 {[%clk 01:35:23]} {[%emt 00:00:13]} 14.
Nf1 {[%clk 01:35:34]} {[%emt 00:00:10]} Nb7 {[%clk 01:31:31]} {[%emt 00:04:22]}
15. Ng3 {[%clk 01:35:52]} {[%emt 00:00:12]} c4 {[%clk 01:31:01]} {[%emt
00:01:00]} 16. Be3 {[%clk 01:30:20]} {[%emt 00:06:02]} g6 {[%clk 01:28:45]}
{[%emt 00:02:46]} 17. Bh6 {[%clk 01:28:39]} {[%emt 00:02:11]} Re8 {[%clk
01:28:55]} {[%emt 00:00:20]} 18. Qd2 {[%clk 01:28:03]} {[%emt 00:01:06]} a5
{[%clk 01:22:25]} {[%emt 00:07:01]} 19. Nh2 {[%clk 01:17:33]} {[%emt 00:10:58]}
Bh4 {[%clk 01:22:47]} {[%emt 00:00:09]} 20. Nf3 {[%clk 01:14:11]} {[%emt
00:03:52]} Be7 {[%clk 01:23:12]} {[%emt 00:00:05]} 21. Rad1 {[%clk 01:12:35]}
{[%emt 00:02:06]} Nc5 {[%clk 01:21:09]} {[%emt 00:02:34]} 22. Qe3 {[%clk
01:05:08]} {[%emt 00:07:56]} b4 {[%clk 01:10:03]} {[%emt 00:11:37]} 23. Nxe5
{[%clk 00:53:25]} {[%emt 00:12:13]} b3 {[%clk 00:54:30]} {[%emt 00:16:03]} 24.
Bb1 {[%clk 00:49:17]} {[%emt 00:04:38]} Ba4 {[%clk 00:48:48]} {[%emt 00:06:12]}
25. Nc6 {[%clk 00:48:00]} {[%emt 00:01:47]} Bxc6 {[%clk 00:46:17]} {[%emt
00:03:01]} 26. dxc6 {[%clk 00:48:06]} {[%emt 00:00:23]} Qc7 {[%clk 00:44:50]}
{[%emt 00:01:58]} 27. Nf5 {[%clk 00:45:38]} {[%emt 00:02:59]} Rab8 {[%clk
00:31:39]} {[%emt 00:13:40]} 28. Nxe7+ {[%clk 00:42:28]} {[%emt 00:03:39]} Qxe7
{[%clk 00:31:20]} {[%emt 00:00:50]} 29. f4 {[%clk 00:35:57]} {[%emt 00:07:01]}
bxa2 {[%clk 00:28:11]} {[%emt 00:03:40]} 30. Bxa2 {[%clk 00:36:19]} {[%emt
00:00:07]} Qxe4 {[%clk 00:26:17]} {[%emt 00:02:23]} 31. Qf2 {[%clk 00:32:33]}
{[%emt 00:04:16]} Qf5 {[%clk 00:20:49]} {[%emt 00:05:59]} 32. Qd4 {[%clk
00:32:05]} {[%emt 00:00:59]} f6 {[%clk 00:20:19]} {[%emt 00:00:59]} 33. Bxc4+
{[%clk 00:32:19]} {[%emt 00:00:15]} Nxc4 {[%clk 00:19:43]} {[%emt 00:01:07]} 34.
Qxc4+ {[%clk 00:32:41]} {[%emt 00:00:08]} Ne6 {[%clk 00:19:30]} {[%emt
00:00:43]} 35. Rxd6 {[%clk 00:32:31]} {[%emt 00:00:41]} Qc5+ {[%clk 00:17:57]}
{[%emt 00:02:02]} 36. Qxc5 {[%clk 00:32:56]} {[%emt 00:00:06]} Nxc5 {[%clk
00:18:23]} {[%emt 00:00:03]} 37. Rxe8+ {[%clk 00:33:21]} {[%emt 00:00:04]} Rxe8
{[%clk 00:18:49]} {[%emt 00:00:05]} 38. c7 {[%clk 00:33:46]} {[%emt 00:00:04]}
Nb7 {[%clk 00:18:34]} {[%emt 00:00:46]} 39. Rb6 {[%clk 00:34:10]} {[%emt
00:00:05]} 1-0